fUST/lending_fUST_20251114
["ID","MTS","AMOUNT","RATE_DAILY","PERIOD"]
[393896928,1763079038533,-1387.86138985,0.00028848,2]
[393896929,1763079038544,-1387.86138985,0.00028848,2]
[393896930,1763079038553,-1387.86138985,0.00028848,2]
[393896931,1763079038562,-1387.86138985,0.00028848,2]
[393896932,1763079038572,-1387.86138985,0.00028848,2]
[393896933,1763079038581,-1387.86138985,0.00028848,2]
[393896934,1763079038591,-1387.86138985,0.00028848,2]
[393896935,1763079038601,-1387.86138985,0.00028848,2]
[393896936,1763079038610,-1387.86138985,0.00028848,2]
[393896937,1763079038620,-1387.86138985,0.00028848,2]
[393896938,1763079038631,-1387.86138985,0.00028848,2]
[393896939,1763079038640,-1387.86138985,0.00028848,2]
[393896940,1763079038650,-1387.86138985,0.00028848,2]
[393896941,1763079038660,-1387.86138985,0.00028848,2]
[393896942,1763079038670,-1387.86138985,0.00028848,2]
[393896943,1763079038683,-1370.51312247,0.00028848,2]
[393896945,1763079038692,-1370.51312247,0.00028848,2]
[393896946,1763079038702,-1370.51312247,0.00028848,2]
[393896947,1763079038711,-1370.51312247,0.00028848,2]
[393896948,1763079038720,-1370.51312247,0.00028848,2]
[393896949,1763079038730,-1370.51312247,0.00028848,2]
[393896950,1763079038740,-1370.51312247,0.00028848,2]
[393896951,1763079038749,-1370.51312247,0.00028848,2]
[393896952,1763079038759,-1370.51312247,0.00028848,2]
[393896953,1763079038768,-1370.51312247,0.00028848,2]
[393896954,1763079038779,-1370.51312247,0.00028848,2]
[393896955,1763079038788,-1370.51312247,0.00028848,2]
[393896956,1763079038798,-1370.51312247,0.00028848,2]
[393896957,1763079038807,-1370.51312247,0.00028848,2]
[393896958,1763079038817,-1370.51312247,0.00028848,2]
[393896959,1763079038826,-1319.45479046,0.00028848,2]
[393896960,1763079038836,-1319.45479046,0.00028848,2]
[393896961,1763079038846,-1319.45479046,0.00028848,2]
[393896962,1763079038855,-1319.45479046,0.00028848,2]
[393896963,1763079038865,-1319.45479046,0.00028848,2]
[393896964,1763079038876,-1319.45479046,0.00028848,2]
[393896965,1763079038887,-1319.45479046,0.00028848,2]
[393896966,1763079038897,-1319.45479046,0.00028848,2]
[393896967,1763079038907,-1319.45479046,0.00028848,2]
[393896968,1763079038917,-1319.45479046,0.00028848,2]
[393896969,1763079038927,-1319.45479046,0.00028848,2]
[393896970,1763079038937,-1319.45479046,0.00028848,2]
[393896971,1763079038947,-1319.45479046,0.00028848,2]
[393896972,1763079038957,-1319.45479046,0.00028848,2]
[393896973,1763079038967,-1319.45479046,0.00028848,2]
[393896974,1763079038976,-1710.40435803,0.00028848,2]
[393896975,1763079038986,-1710.40435803,0.00028848,2]
[393896976,1763079038995,-106504.53562897,0.00028849,2]
[393896977,1763079039008,-3520.04,0.00028849,2]
[393896978,1763079039029,-1586.89579298,0.00028849,2]
[393896979,1763079039041,-1224.82266252,0.00028849,2]
[393896980,1763079039053,-540.61021453,0.00028849,2]
[393896981,1763079039063,-1888.3931287,0.0002885,3]
[393896982,1763079039227,233.51889341,0.00039595,120]
[393896985,1763079039857,242.15909246,0.00039595,120]
[393896987,1763079040078,-3e-08,0.0002884,10]
[393896988,1763079040109,-2499.95999997,0.0002884,10]
[393896989,1763079040119,-437.8268713,0.0002885,3]
[393896990,1763079040131,-1163.11,0.0002885,3]
[393896991,1763079040141,-581.55,0.0002885,3]
[393896992,1763079040150,-56688.4521493,0.00028851,2]
[393896993,1763079040159,-275.85,0.00028859,14]
[393896994,1763079040169,-2043.25542603,0.0002886,2]
[393896995,1763079040178,-500.0,0.00028871,4]
[393896996,1763079040188,-500.0,0.00028871,4]
[393896997,1763079040197,-500.0,0.00028872,4]
[393896998,1763079040206,-500.0,0.00028872,4]
[393896999,1763079040216,-500.0,0.00028873,5]
[393897000,1763079040226,-500.0,0.00028873,5]
[393897001,1763079040237,-500.0,0.00028873,5]
[393897002,1763079040251,-500.0,0.00028873,5]
[393897003,1763079040261,-281.53636924,0.00028873,5]
[393897004,1763079040271,-507.54180624,0.00028873,5]
[393897005,1763079040283,-503.19168683,0.00028873,5]
[393897006,1763079040292,-500.0,0.00028873,5]
[393897007,1763079040302,-503.81842558,0.00028873,5]
[393897008,1763079040312,-150.35031034,0.00028873,5]
[393897009,1763079040323,-466.04735602,0.00028873,5]
[393897010,1763079040332,-220.32219446,0.00028873,5]
[393897011,1763079040343,-500.0,0.00028873,5]
[393897012,1763079040352,-500.0,0.00028873,5]
[393897013,1763079040361,-500.0,0.00028873,5]
[393897014,1763079040371,-500.0,0.00028873,3]
[393897015,1763079040382,-500.0,0.00028873,5]
[393897016,1763079040392,-500.0,0.00028873,2]
[393897017,1763079040402,-500.0,0.00028873,5]
[393897018,1763079040412,-150.0,0.00028895,2]
[393897019,1763079040421,-500.0,0.00028952,4]
[393897020,1763079040431,-24659.62723135,0.00028964,2]
[393897021,1763079040539,251.11897888,0.00039595,120]
[393897022,1763079041107,260.4103811,0.00039595,120]
[393897023,1763079041724,270.0455652,0.00039595,120]
[393897030,1763079042357,280.03725112,0.00039595,120]
[393897031,1763079043118,290.39862941,0.00039595,120]
[393897032,1763079043821,290.39862941,0.00039595,120]
[393897039,1763079046555,-32028.82491795,0.00028964,2]
[393897040,1763079046564,-500.0,0.00028964,4]
[393897042,1763079046574,-549.531817,0.00028964,4]
[393897043,1763079046583,-500.0,0.00028964,4]
[393897044,1763079046592,-500.0,0.00028964,4]
[393897045,1763079046602,-500.0,0.00028964,4]
[393897046,1763079046611,-500.0,0.00028964,4]
[393897047,1763079046620,-500.0,0.00028964,4]
[393897048,1763079046630,-500.0,0.00028964,4]
[393897049,1763079046639,-500.0,0.00028964,4]
[393897050,1763079046649,-500.0,0.00028964,4]
[393897051,1763079046658,-500.0,0.00028964,4]
[393897052,1763079046667,-500.0,0.00028964,4]
[393897053,1763079046677,-500.0,0.00028964,4]
[393897054,1763079046686,-500.0,0.00028964,4]
[393897055,1763079046695,-500.0,0.00028964,4]
[393897056,1763079046783,-500.0,0.00028964,4]
[393897057,1763079046792,-500.0,0.00028964,4]
[393897058,1763079046801,-403.784,0.00028964,4]
[393897059,1763079046811,-500.0,0.00028972,4]
[393897060,1763079046820,-620.85571295,0.00028972,4]
[393897061,1763079046829,-500.0,0.00028973,5]
[393897062,1763079046839,-500.0,0.00028973,5]
[393897063,1763079046848,-500.0,0.00028973,5]
[393897064,1763079046857,-501.76918078,0.00028973,5]
[393897065,1763079046866,-502.56887421,0.00028973,5]
[393897066,1763079046875,-500.0,0.00028973,5]
[393897067,1763079046886,-500.7096272,0.00028973,5]
[393897068,1763079046895,-501.5332089,0.00028973,5]
[393897069,1763079046904,-500.0,0.00028973,5]
[393897070,1763079046913,-500.0,0.00028975,2]
[393897071,1763079046922,-500.0,0.00028976,2]
[393897072,1763079046930,-500.0,0.00028976,2]
[393897073,1763079046940,-500.0,0.00028976,2]
[393897074,1763079046948,-500.0,0.00028976,2]
[393897075,1763079046957,-500.0,0.00028976,2]
[393897076,1763079046966,-500.0,0.00028977,2]
[393897077,1763079046975,-500.0,0.00028977,2]
[393897078,1763079046983,-500.0,0.00028977,2]
[393897079,1763079046992,-500.0,0.00028987,4]
[393897080,1763079047001,-500.0,0.00028988,4]
[393897081,1763079047010,-500.0,0.00028988,4]
[393897082,1763079047019,-500.0,0.00028988,4]
[393897083,1763079047028,-500.0,0.00028988,4]
[393897084,1763079047037,-500.0,0.00028988,4]
[393897085,1763079047047,-500.0,0.00028988,4]
[393897086,1763079047056,-500.0,0.00028988,4]
[393897087,1763079047066,-500.0,0.00028988,4]
[393897088,1763079047075,-1000.0,0.00028988,2]
[393897089,1763079047084,-1000.0,0.00028988,2]
[393897090,1763079047094,-1000.0,0.00028988,2]
[393897091,1763079047104,-1000.0,0.00028988,2]
[393897092,1763079047114,-1000.0,0.00028988,2]
[393897093,1763079047124,-1000.0,0.00028988,2]
[393897094,1763079047134,-1000.0,0.00028988,2]
[393897095,1763079047143,-1000.0,0.00028988,2]
[393897096,1763079047153,-500.0,0.00028989,4]
[393897097,1763079047162,-500.0,0.00028989,4]
[393897098,1763079047172,-1000.0,0.00028989,2]
[393897099,1763079047181,-1000.0,0.00028989,2]
[393897100,1763079047190,-500.0,0.00028999,4]
[393897101,1763079047199,-1000.0,0.00028999,2]
[393897102,1763079047208,-164.84,0.00029,7]
[393897103,1763079047218,-275.33,0.00029,14]
[393897104,1763079047227,-160.0,0.00029,2]
[393897105,1763079047237,-2043.25542603,0.00029066,2]
[393897106,1763079047249,-275.85,0.00029133,14]
[393897107,1763079047259,-350.0,0.00029241,2]
[393897108,1763079047269,-2043.25542603,0.00029321,2]
[393897109,1763079047278,-275.86102577,0.00029407,14]
[393897110,1763079047290,-1000.0,0.00029421,5]
[393897111,1763079047300,-489.30025741,0.00029421,5]
[393897112,1763079047309,-495.18708248,0.00029421,5]
[393897113,1763079047318,-1000.0,0.00029421,5]
[393897114,1763079047328,-500.0,0.00029421,5]
[393897115,1763079047337,-500.0,0.00029421,5]
[393897116,1763079047347,-500.0,0.00029421,3]
[393897117,1763079047356,-437.31361321,0.00029421,2]
[393897118,1763079047365,-500.0,0.00029421,5]
[393897119,1763079047375,-1000.0,0.00029421,5]
[393897120,1763079047386,-162.36131816,0.00029425,34]
[393897121,1763079047396,-500.0,0.0002951,4]
[393897122,1763079047406,-500.0,0.0002951,4]
[393897123,1763079047415,-500.0,0.0002951,4]
[393897124,1763079047425,-1000.0,0.00029521,5]
[393897125,1763079047435,-250.05409004,0.00029521,5]
[393897126,1763079047444,-1000.0,0.00029521,5]
[393897127,1763079047453,-1020.67360796,0.00029521,5]
[393897128,1763079047463,-260.0,0.00029548,2]
[393897129,1763079047472,-13896.14081392,0.00029563,2]
[393897130,1763079080804,200.0,0.00039595,30]
[393897134,1763079151145,150.0,0.00039595,30]
[393897139,1763079197063,589.76767352,0.00025243,2]
[393897140,1763079197708,150.0,0.0002589,2]
[393897143,1763079316306,151.0,0.00039595,120]
[393897144,1763079317019,156.587,0.00039595,120]
[393897145,1763079317624,162.380719,0.00039595,120]
[393897146,1763079318726,168.3888056,0.00039595,120]
[393897147,1763079319493,174.61919141,0.00039595,120]
[393897148,1763079320124,181.08010149,0.00039595,120]
[393897149,1763079320805,187.78006525,0.00039595,120]
[393897150,1763079321495,194.72792766,0.00039595,120]
[393897151,1763079322129,201.93286099,0.00039595,120]
[393897152,1763079322793,209.40437684,0.00039595,120]
[393897153,1763079323445,217.15233878,0.00039595,120]
[393897154,1763079324066,225.18697532,0.00039595,120]
[393897155,1763079324725,233.51889341,0.00039595,120]
[393897156,1763079325386,242.15909246,0.00039595,120]
[393897157,1763079326043,251.11897888,0.00039595,120]
[393897158,1763079326714,260.4103811,0.00039595,120]
[393897159,1763079327353,270.0455652,0.00039595,120]
[393897160,1763079327977,280.03725112,0.00039595,120]
[393897161,1763079328604,290.39862941,0.00039595,120]
[393897162,1763079329300,290.39862941,0.00039595,120]
[393897163,1763079380215,200.0,0.00039582,30]
[393897166,1763079509974,150.0,0.0002589,2]
[393897170,1763079604759,152.66808323,0.00039582,90]
[393897171,1763079611756,151.0,0.00039582,120]
[393897172,1763079612415,156.587,0.00039582,120]
[393897173,1763079613104,162.380719,0.00039582,120]
[393897174,1763079613776,168.3888056,0.00039582,120]
[393897175,1763079614403,174.61919141,0.00039582,120]
[393897176,1763079615063,181.08010149,0.00039582,120]
[393897177,1763079615723,187.78006525,0.00039582,120]
[393897178,1763079616558,194.72792766,0.00039582,120]
[393897179,1763079617175,201.93286099,0.00039582,120]
[393897180,1763079617831,209.40437684,0.00039582,120]
[393897181,1763079618485,217.15233878,0.00039582,120]
[393897182,1763079619104,225.18697532,0.00039582,120]
[393897183,1763079619759,233.51889341,0.00039582,120]
[393897184,1763079620421,242.15909246,0.00039582,120]
[393897185,1763079621035,251.11897888,0.00039582,120]
[393897186,1763079621696,260.4103811,0.00039582,120]
[393897187,1763079622358,270.0455652,0.00039582,120]
[393897188,1763079623012,280.03725112,0.00039582,120]
[393897189,1763079623684,290.39862941,0.00039582,120]
[393897190,1763079624337,290.39862941,0.00039582,120]
[393897194,1763079680579,200.0,0.00039583,30]
[393897199,1763079785103,356.77,0.00039583,20]
[393897200,1763079825254,150.0,0.0002589,2]
[393897202,1763079859017,184.39522907,0.00026578,2]
[393897203,1763079861550,737.58091627,0.00026578,2]
[393897204,1763079863553,1659.5570616,0.00026578,2]
[393897209,1763079920392,151.0,0.00039583,120]
[393897210,1763079921056,156.587,0.00039583,120]
[393897211,1763079921695,162.380719,0.00039583,120]
[393897212,1763079922326,168.3888056,0.00039583,120]
[393897213,1763079922963,174.61919141,0.00039583,120]
[393897214,1763079923634,181.08010149,0.00039583,120]
[393897215,1763079924365,187.78006525,0.00039583,120]
[393897216,1763079925015,194.72792766,0.00039583,120]
[393897218,1763079925813,201.93286099,0.00039583,120]
[393897219,1763079926308,209.40437684,0.00039583,120]
[393897220,1763079926933,217.15233878,0.00039583,120]
[393897221,1763079928035,225.18697532,0.00039583,120]
[393897222,1763079928687,233.51889341,0.00039583,120]
[393897223,1763079929321,242.15909246,0.00039583,120]
[393897224,1763079930000,251.11897888,0.00039583,120]
[393897225,1763079930691,260.4103811,0.00039583,120]
[393897226,1763079931329,270.0455652,0.00039583,120]
[393897227,1763079931974,280.03725112,0.00039583,120]
[393897228,1763079932779,290.39862941,0.00039583,120]
[393897229,1763079933295,290.39862941,0.00039583,120]
[393897231,1763079956452,405.53251941,0.00039583,20]
[393897235,1763079980808,200.0,0.00039583,30]
[393897236,1763080005284,-186.910702,0.0002725,2]
[393897237,1763080005309,-160.9749289,0.00027289,2]
[393897238,1763080005341,-149.39660975,0.00027345,2]
[393897239,1763080007174,-283.14964866,0.00027345,2]
[393897243,1763080042400,246700.48881959,0.00039583,20]
[393897250,1763080061888,20606.60233379,0.00018,2]
[393897251,1763080061917,25000.0,0.00018,2]
[393897252,1763080061946,6127.74472534,0.00018,2]
[393897254,1763080103582,4555.61023623,0.00022,5]
[393897255,1763080110245,-498.15210123,0.00027345,2]
[393897263,1763080114581,-361.59112517,0.00027345,2]
[393897264,1763080116827,-272.03248709,0.00027345,2]
[393897266,1763080125325,-164.1545344,0.00027345,2]
[393897267,1763080126910,-200.51844419,0.00027345,2]
[393897268,1763080129586,-272.51982629,0.00027345,2]
[393897269,1763080132738,-341.62062842,0.00027345,2]
[393897270,1763080132946,-407.18825986,0.00027345,2]
[393897271,1763080133032,-1200.0,0.00027471,2]
[393897272,1763080133123,-300.0,0.00027471,2]
[393897273,1763080133443,-5819.83446977,0.00027472,2]
[393897274,1763080133540,-958.87666363,0.00027472,2]
[393897275,1763080133636,-2122.5257733,0.000275,2]
[393897276,1763080133723,-200.0,0.00027733,15]
[393897277,1763080133837,-3632.4465095,0.00027746,2]
[393897278,1763080133925,-500.0,0.00027808,4]
[393897279,1763080134013,-160.0,0.0002786,2]
[393897280,1763080134101,-177.0,0.0002789,2]
[393897281,1763080134197,-61.116981,0.00027956,30]
[393897282,1763080134505,-938.883019,0.00027956,30]
[393897283,1763080134597,-291.913644,0.00028041,2]
[393897284,1763080134689,-340.89874281,0.00028198,2]
[393897285,1763080134774,-260.0,0.00028408,2]
[393897286,1763080134852,-285.80933251,0.00028498,2]
[393897287,1763080135113,-421.58340682,0.0002876,2]
[393897288,1763080135182,-500.0,0.0002876,2]
[393897289,1763080135252,-160.0,0.0002876,2]
[393897290,1763080135338,-1790.40754417,0.0002876,2]
[393897291,1763080135594,-3580.81508834,0.0002876,2]
[393897292,1763080135849,-2838.37982332,0.0002876,2]
[393897293,1763080135930,-500.0,0.00028859,4]
[393897294,1763080136121,-500.0,0.00028859,4]
[393897295,1763080136203,-500.0,0.00028859,4]
[393897296,1763080136281,-500.0,0.00028859,4]
[393897297,1763080136674,-500.0,0.00028859,4]
[393897298,1763080136761,-500.0,0.00028859,4]
[393897299,1763080136845,-1000.0,0.00028859,2]
[393897300,1763080136924,-1000.0,0.00028859,2]
[393897301,1763080137000,-328.35,0.00028859,2]
[393897302,1763080137078,-500.0,0.0002886,4]
[393897303,1763080137159,-406.54166249,0.0002886,4]
[393897304,1763080137243,-150.0,0.00028871,2]
[393897305,1763080137324,-360.0,0.00028956,2]
[393897306,1763080137405,-10.22667502,0.00028963,4]
[393897307,1763080137732,-489.77332498,0.00028963,4]
[393897308,1763080137741,-500.0,0.00028963,2]
[393897309,1763080137751,-500.0,0.00028963,2]
[393897310,1763080137760,-500.0,0.00028963,4]
[393897311,1763080137770,-314.61359919,0.00028963,4]
[393897312,1763080137847,-185.38640081,0.00028963,4]
[393897313,1763080137857,-429.60816672,0.00028973,5]
[393897314,1763080137866,-500.0,0.00028973,5]
[393897315,1763080137876,-4609.88072666,0.0002901,2]
[393897316,1763080137886,-694.31961747,0.00029253,2]
[393897317,1763080137960,-1348.93580859,0.00029253,2]
[393897318,1763080137974,-160.4018764,0.00029295,2]
[393897319,1763080137984,-460.0,0.00029504,2]
[393897320,1763080137994,-869.04213833,0.00029521,5]
[393897321,1763080138075,-130.95786167,0.00029521,5]
[393897322,1763080138085,-369.04213833,0.00029684,2]
[393897323,1763080138153,-130.95786167,0.00029684,2]
[393897324,1763080138163,-369.04213833,0.00029684,2]
[393897325,1763080138233,-130.95786167,0.00029684,2]
[393897326,1763080138243,-369.04213833,0.00029684,2]
[393897327,1763080138328,-130.95786167,0.00029684,2]
[393897328,1763080138338,-369.04213833,0.00029684,2]
[393897329,1763080138433,-130.95786167,0.00029684,2]
[393897330,1763080138442,-192.29249169,0.00029684,2]
[393897331,1763080138527,-307.70750831,0.00029684,2]
[393897332,1763080138536,-192.29249169,0.00029684,2]
[393897333,1763080138622,-307.70750831,0.00029684,2]
[393897334,1763080138631,-192.29249169,0.00029684,2]
[393897335,1763080138706,-307.70750831,0.00029684,2]
[393897336,1763080138716,-500.0,0.00029684,2]
[393897337,1763080138726,-192.29249169,0.00029684,2]
[393897338,1763080138816,-307.70750831,0.00029684,2]
[393897339,1763080138827,-500.0,0.00029684,2]
[393897340,1763080138836,-192.29249169,0.00029684,2]
[393897341,1763080138924,-307.70750831,0.00029684,2]
[393897342,1763080138935,-20.64249169,0.00029684,2]
[393897343,1763080139029,-479.35750831,0.00029684,2]
[393897344,1763080139041,-20.64249169,0.00029684,2]
[393897345,1763080139118,-406.54166249,0.00029684,2]
[393897346,1763080139195,-72.81584582,0.00029684,2]
[393897347,1763080139205,-77.18415418,0.00029684,2]
[393897348,1763080139284,-360.0,0.00029684,2]
[393897349,1763080139351,-62.81584582,0.00029684,2]
[393897350,1763080139361,-437.18415418,0.00029684,2]
[393897351,1763080139478,-62.81584582,0.00029684,2]
[393897352,1763080139582,-500.0,0.00029684,2]
[393897353,1763080139703,-500.0,0.00029684,2]
[393897354,1763080139803,-500.0,0.00029684,2]
[393897355,1763080139903,-500.0,0.00029684,2]
[393897356,1763080140009,-500.0,0.00029684,2]
[393897357,1763080140109,-500.0,0.00029684,2]
[393897358,1763080140206,-500.0,0.00029684,2]
[393897359,1763080140429,-500.0,0.00029684,2]
[393897360,1763080140526,-500.0,0.00029684,2]
[393897361,1763080140626,-374.37830836,0.00029684,2]
[393897362,1763080140865,-125.62169164,0.00029684,2]
[393897363,1763080140957,-500.0,0.00029684,2]
[393897364,1763080141055,-500.0,0.00029684,2]
[393897365,1763080141145,-500.0,0.00029684,2]
[393897366,1763080141243,-500.0,0.00029684,2]
[393897367,1763080141336,-1680.0,0.00029685,2]
[393897368,1763080141416,-420.0,0.00029685,2]
[393897369,1763080141494,-326.63923716,0.00029841,2]
[393897370,1763080141574,-395.4881424,0.00029958,4]
[393897371,1763080141681,-104.5118576,0.00029958,4]
[393897372,1763080141762,-500.0,0.00029958,2]
[393897373,1763080141861,-500.0,0.00029958,2]
[393897374,1763080141944,-500.0,0.00029959,4]
[393897375,1763080142025,-500.0,0.00029959,2]
[393897376,1763080142101,-500.0,0.00029959,2]
[393897377,1763080142175,-500.0,0.00029959,4]
[393897378,1763080142251,-500.0,0.00029959,4]
[393897379,1763080143011,-157.21272931,0.0002996,2]
[393897380,1763080144748,-230.13354924,0.00025243,2]
[393897381,1763080144820,-55.53718047,0.00025243,2]
[393897382,1763080144830,-2735.44910433,0.0002996,2]
[393897383,1763080144901,-10000.01,0.0002996,2]
[393897384,1763080144968,-9190.41691836,0.0002996,2]
[393897385,1763080144978,-500.0,0.00029968,2]
[393897386,1763080144987,-309.59308164,0.00029968,4]
[393897387,1763080145725,169.066413,0.00013699,2]
[393897388,1763080145939,169.066413,0.00020187,2]
[393897389,1763080146531,-169.066413,0.00026676,2]
[393897390,1763080146885,116.99473072,0.00025243,2]
[393897391,1763080148279,-46.46989785,0.00025243,2]
[393897393,1763080152103,207.05542546,0.000271,3]
[393897394,1763080152131,394.69839729,0.000271,3]
[393897395,1763080152157,-301.87762666,0.00029968,4]
[393897396,1763080152177,-500.0,0.00029968,4]
[393897397,1763080152197,-500.0,0.00029973,5]
[393897398,1763080152216,-219.34271575,0.00029973,5]
[393897399,1763080152238,-2052.62,0.0002999,10]
[393897400,1763080152339,-1724.56,0.0002999,10]
[393897401,1763080152361,-396.70007977,0.00029998,2]
[393897402,1763080152381,-714.06014358,0.00029998,2]
[393897403,1763080152401,-227.46009467,0.00029998,2]
[393897404,1763080152420,-521.8065,0.00029998,2]
[393897405,1763080152441,-1269.44025526,0.00029998,2]
[393897406,1763080152461,-409.4281704,0.00029998,2]
[393897407,1763080152483,-939.25170001,0.00029998,2]
[393897408,1763080152503,-506.4868739,0.00029998,2]
[393897411,1763080215129,151.0,0.00039583,30]
[393897412,1763080215750,156.587,0.00039583,120]
[393897413,1763080216410,162.380719,0.00039583,30]
[393897414,1763080217538,168.3888056,0.00039583,120]
[393897415,1763080218209,174.61919141,0.00039583,120]
[393897416,1763080218850,181.08010149,0.00039583,30]
[393897417,1763080219567,187.78006525,0.00039583,120]
[393897418,1763080221012,194.72792766,0.00039583,30]
[393897419,1763080221624,201.93286099,0.00039583,120]
[393897420,1763080222234,209.40437684,0.00039583,20]
[393897421,1763080222917,217.15233878,0.00039583,20]
[393897422,1763080223540,225.18697532,0.00039583,20]
[393897423,1763080224169,233.51889341,0.00039583,20]
[393897424,1763080224777,242.15909246,0.00039583,20]
[393897425,1763080225458,251.11897888,0.00039583,20]
[393897426,1763080226116,260.4103811,0.00039583,20]
[393897427,1763080226765,270.0455652,0.00039583,20]
[393897428,1763080227413,280.03725112,0.00039583,20]
[393897429,1763080228025,290.39862941,0.00039583,20]
[393897430,1763080228672,290.39862941,0.00039583,20]
[393897457,1763080231898,-150.0,0.00028848,2]
[393897459,1763080231907,-500.0,0.00028858,4]
[393897461,1763080231916,-300.0,0.00029683,2]
[393897463,1763080231925,-539.575,0.00029683,2]
[393897561,1763080237958,-120.425,0.00029683,2]
[393897563,1763080237974,-326.69319403,0.00029739,2]
[393897566,1763080237992,-3500.38042455,0.00029942,2]
[393897569,1763080238007,-500.0,0.00029956,4]
[393897572,1763080238023,-500.0,0.00029958,4]
[393897574,1763080238040,-500.0,0.00029959,4]
[393897577,1763080238061,-552.50138142,0.00029977,2]
[393897716,1763080240316,-3e-08,0.00029977,2]
[393897732,1763080243323,-1117.27941856,0.00029977,2]
[393897733,1763080243332,-221.38542904,0.00029998,2]
[393897734,1763080243342,-500.0,0.00029999,2]
[393897735,1763080243351,-500.0,0.00029999,2]
[393897736,1763080243360,-500.0,0.00029999,2]
[393897737,1763080243370,-453.5996275,0.00029999,2]
[393897738,1763080243379,-500.0,0.00029999,2]
[393897739,1763080243389,-500.0,0.00029999,2]
[393897741,1763080243398,-500.0,0.00029999,2]
[393897742,1763080243407,-500.0,0.00029999,2]
[393897744,1763080243416,-500.0,0.00029999,2]
[393897746,1763080243425,-164.84,0.0003,7]
[393897748,1763080243435,-45351.50929697,0.0003,30]
[393897750,1763080243444,-232.75,0.00030042,3]
[393897752,1763080243454,-175.66,0.00030048,3]
[393897754,1763080243465,-527.03,0.00030048,3]
[393897755,1763080243475,-1834.57,0.00030049,10]
[393897756,1763080243484,-1528.81,0.00030049,10]
[393897757,1763080243493,-1274.01,0.00030049,10]
[393897758,1763080243502,-44655.9546788,0.00030058,2]
[393897759,1763080243512,-465.51,0.00030222,3]
[393897760,1763080243522,-1363.59497125,0.00030251,2]
[393897761,1763080243531,-500.0,0.00030272,2]
[393897762,1763080243540,-1000.0,0.00030521,5]
[393897763,1763080243551,-500.00000003,0.00030526,4]
[393897764,1763080243560,-500.0,0.00030567,5]
[393897765,1763080243570,-931.02,0.00030596,3]
[393897766,1763080243580,-1862.03,0.00030606,3]
[393897767,1763080243589,-459.72603606,0.00030753,2]
[393897768,1763080243599,-884.61467122,0.00030876,2]
[393897769,1763080243610,-1000.0,0.00031068,5]
[393897770,1763080243622,-1000.0,0.00031115,5]
[393897771,1763080243631,-589.76767352,0.00031237,2]
[393897772,1763080243640,-500.0,0.00031306,2]
[393897773,1763080243649,-257.48215031,0.00031306,2]
[393897774,1763080243659,-500.0,0.00031306,2]
[393897775,1763080243669,-250.33665697,0.00031306,2]
[393897776,1763080243678,-4450.29968408,0.00031307,2]
[393897777,1763080243687,-465.5,0.00031412,3]
[393897778,1763080243698,-500.0,0.00031416,4]
[393897779,1763080243707,-351.32,0.00031418,3]
[393897780,1763080243718,-500.0,0.00031426,2]
[393897781,1763080243727,-500.0,0.00031426,2]
[393897782,1763080243736,-500.0,0.00031426,2]
[393897783,1763080243745,-504.39211601,0.00031473,5]
[393897784,1763080243754,-500.0,0.00031473,5]
[393897785,1763080243763,-500.0,0.00031473,5]
[393897786,1763080243772,-504.09614537,0.00031473,5]
[393897787,1763080243782,-500.0,0.00031473,5]
[393897788,1763080243791,-243.41,0.000315,14]
[393897789,1763080243803,-931.02,0.00031592,3]
[393897790,1763080243812,-1027.10695619,0.00031663,5]
[393897791,1763080243821,-884.61467122,0.00031797,2]
[393897792,1763080243831,-160.0,0.000318,2]